bitfinex/quotes_BTCUSD_20250403
["timestamp","ask_amount","ask_price","bid_price","bid_amount"]
[1743653108708,1.13591298,83406.0,83405.0,0.0004585]
[1743653108903,1.33354989,83406.0,83405.0,0.0004585]
[1743653109117,0.591792,83402.0,83401.0,5e-07]
[1743653109288,0.7408405,83402.0,83401.0,0.00013811]
[1743653111005,0.7085476,83402.0,83401.0,0.00013811]
[1743653111402,0.8432676,83402.0,83401.0,0.00013811]
[1743653112235,0.91263393,83402.0,83401.0,0.00013811]
[1743653113070,1.11490145,83402.0,83401.0,0.00013811]
[1743653117268,1.11494145,83402.0,83401.0,0.00013811]
[1743653117604,1.11494145,83402.0,83401.0,0.00030681]
[1743653119338,0.98018145,83402.0,83401.0,0.00030681]
[1743653119569,1.11494145,83402.0,83401.0,0.00030681]
[1743653120439,1.176818,83402.0,83401.0,0.00030681]
[1743653120615,1.11494145,83402.0,83401.0,0.00030681]
[1743653127000,2.19422145,83402.0,83401.0,0.00030681]
[1743653127518,2.24312145,83402.0,83401.0,8.1e-07]
[1743653129401,2.24345905,83402.0,83401.0,8.1e-07]
[1743653129570,2.36020306,83402.0,83401.0,8.1e-07]
[1743653130414,2.36020306,83402.0,83381.0,0.0501372]
[1743653130415,0.591851,83382.0,83381.0,0.0003372]
[1743653130731,1.11500045,83382.0,83381.0,0.0003372]
[1743653131483,1.12385859,83382.0,83381.0,0.0003372]
[1743653131799,1.13862012,83382.0,83381.0,0.0003372]
[1743653139841,1.13826033,83382.0,83381.0,0.0003372]
[1743653140864,1.00350033,83382.0,83381.0,0.0003372]
[1743653141043,1.13826033,83382.0,83381.0,0.0003372]
[1743653143108,1.18696033,83382.0,83381.0,0.0003372]
[1743653144426,1.21925323,83382.0,83381.0,2e-07]
[1743653144801,1.18696033,83382.0,83381.0,2e-07]
[1743653147411,1.13826033,83382.0,83381.0,2e-07]
[1743653155188,1.13859793,83382.0,83381.0,2e-07]
[1743653158820,1.22959793,83382.0,83381.0,2e-07]
[1743653158982,1.34634194,83382.0,83381.0,2e-07]
[1743653160175,1.22959793,83382.0,83381.0,2e-07]
[1743653163935,0.351994,83372.0,83371.0,8e-07]
[1743653164140,0.52846559,83372.0,83371.0,8e-07]
[1743653164798,0.48326559,83372.0,83371.0,8e-07]
[1743653165143,0.61806559,83372.0,83371.0,0.00045971]
[1743653167824,0.61806559,83372.0,83371.0,0.00062821]
[1743653168792,0.88969944,83372.0,83371.0,0.00062821]
[1743653171188,0.75489944,83372.0,83371.0,0.00062821]
[1743653171390,0.88969944,83372.0,83371.0,0.00062821]
[1743653171604,1.96937944,83372.0,83371.0,0.00062821]
[1743653171890,1.83457944,83372.0,83371.0,0.00062821]
[1743653172052,1.96937944,83372.0,83371.0,0.00062821]
[1743653172868,1.83457944,83372.0,83371.0,0.00062821]
[1743653173070,1.96937944,83372.0,83371.0,0.00062821]
[1743653173713,1.83457944,83372.0,83371.0,0.00062821]
[1743653173859,1.96937944,83372.0,83371.0,0.00062821]
[1743653178822,1.96933944,83372.0,83371.0,0.00062821]
[1743653179722,1.96967644,83372.0,83371.0,0.00062821]
[1743653180744,1.69804259,83372.0,83371.0,0.00062821]
[1743653181608,1.56328259,83372.0,83371.0,0.00062821]
[1743653181811,1.55128859,83372.0,83371.0,0.00062821]
[1743653182605,1.55128859,83372.0,83371.0,0.00812471]
[1743653182933,1.43453299,83372.0,83371.0,0.01187294]
[1743653183077,1.43453299,83372.0,83371.0,0.02386694]
[1743653183646,1.43453299,83372.0,83371.0,0.01187294]
[1743653183853,1.44652699,83372.0,83371.0,0.01187294]
[1743653184272,1.44652699,83372.0,83371.0,0.00812471]
[1743653184534,1.43453299,83372.0,83371.0,0.00812471]
[1743653185481,1.43453299,83372.0,83371.0,0.00062821]
[1743653186041,0.01485299,83372.0,83371.0,0.00062821]
[1743653189232,0.01485299,83372.0,83371.0,0.01262221]
[1743653189437,0.01485299,83372.0,83371.0,0.00062821]
[1743653190319,0.35485299,83372.0,83371.0,0.00062821]
[1743653190743,0.36684699,83372.0,83371.0,0.00062821]
[1743653193186,0.48360259,83372.0,83371.0,0.00062821]
[1743653205373,0.61836259,83372.0,83371.0,0.00062821]
[1743653206708,0.61552068,83372.0,83371.0,0.00062821]
[1743653206937,0.61594059,83372.0,83371.0,0.00062821]
[1743653216323,0.48118059,83372.0,83371.0,0.00062821]
[1743653216528,0.61590059,83372.0,83371.0,0.00062821]
[1743653221845,0.48118059,83372.0,83371.0,0.00062821]
[1743653223158,0.48118059,83372.0,83371.0,0.00812539]
[1743653231956,0.48118059,83372.0,83371.0,0.00062821]
[1743653233498,0.011995,83364.0,83361.0,0.01574476]
[1743653233728,0.251888,83370.0,83364.0,0.251904]
[1743653233921,0.1167556,83369.0,83364.0,0.251904]
[1743653234658,0.011995,83367.0,83365.0,0.00374875]
[1743653234776,0.011995,83367.0,83365.0,0.02324169]
[1743653234979,0.011995,83367.0,83365.0,0.03223179]
[1743653235933,0.011995,83367.0,83366.0,0.00374875]
[1743653236111,0.011995,83367.0,83366.0,0.01273885]
[1743653236338,0.011995,83367.0,83366.0,0.03223179]
[1743653237467,0.01243368,83367.0,83366.0,0.03223179]
[1743653240113,0.01243368,83367.0,83366.0,0.03240029]
[1743653243908,0.01243368,83367.0,83366.0,0.03040029]
[1743653244193,0.01243368,83367.0,83366.0,0.01840428]
[1743653245287,0.00043868,83367.0,83366.0,0.01840428]
[1743653245691,0.1167556,83369.0,83367.0,0.011995]
[1743653245884,0.1167556,83369.0,83368.0,0.251895]
[1743653246131,0.00270879,83371.0,83368.0,0.25939193]
[1743653246330,0.1167556,83370.0,83369.0,0.011994]
[1743653246783,0.1167556,83370.0,83368.0,0.02848203]
[1743653247335,0.1167556,83370.0,83369.0,0.00749693]
[1743653247530,0.00270879,83371.0,83369.0,0.00749693]
[1743653248481,0.00270879,83371.0,83370.0,0.00749693]
[1743653249275,0.00313883,83371.0,83370.0,0.00749693]
[1743653249812,0.34313883,83371.0,83370.0,0.00749693]
[1743653250015,0.35513283,83371.0,83370.0,0.00749693]
[1743653257148,0.35513283,83371.0,83370.0,0.01124541]
[1743653257349,0.47188843,83371.0,83370.0,0.01124541]
[1743653257748,0.52018843,83371.0,83370.0,0.01124541]
[1743653258253,0.52018843,83371.0,83370.0,0.00749693]
[1743653258750,0.47188843,83371.0,83370.0,0.00749693]
[1743653260250,0.47188843,83371.0,83370.0,0.01124538]
[1743653260659,0.48558742,83371.0,83370.0,0.01124538]
[1743653264535,0.48558742,83371.0,83370.0,0.02023989]
[1743653267666,0.48521563,83371.0,83370.0,0.02023989]
[1743653268286,0.48521563,83371.0,83370.0,0.01124538]
[1743653272264,0.01646603,83371.0,83370.0,0.01124538]
[1743653275169,0.02846003,83371.0,83370.0,0.01124538]
[1743653278444,0.01646603,83371.0,83370.0,0.01124538]
[1743653284789,0.01674563,83371.0,83370.0,0.01124538]
[1743653285675,0.01674563,83371.0,83370.0,0.02323984]
[1743653286762,0.02873963,83371.0,83370.0,0.02323984]
[1743653287161,0.01674563,83371.0,83370.0,0.02323984]
[1743653290783,0.002337,83371.0,83370.0,0.03523384]
[1743653291703,0.002337,83371.0,83370.0,0.08413384]
[1743653293453,0.002337,83371.0,83370.0,0.13263384]
[1743653293653,0.002337,83371.0,83370.0,0.17007151]
[1743653293987,0.000337,83371.0,83370.0,0.16707151]
[1743653294581,0.0003376,83382.0,83381.0,0.251855]
[1743653294834,0.00039274,83382.0,83381.0,0.251855]
[1743653295410,0.00039274,83382.0,83381.0,0.26384946]
[1743653296266,0.0147544,83382.0,83381.0,0.27359406]
[1743653296473,0.00039274,83382.0,83381.0,0.27359406]
[1743653296689,0.01400157,83382.0,83381.0,0.27359406]
[1743653296909,0.00039274,83382.0,83381.0,0.27359406]
[1743653297075,0.00114557,83382.0,83381.0,0.27359406]
[1743653297781,0.00114557,83382.0,83381.0,0.37537212]
[1743653299858,0.00039274,83382.0,83381.0,0.26759791]
[1743653302439,0.00039274,83382.0,83381.0,0.27359369]
[1743653304317,0.00039274,83382.0,83381.0,0.26759791]
[1743653306002,0.00039274,83382.0,83381.0,0.31519791]
[1743653306204,0.00039274,83382.0,83381.0,0.32269267]
[1743653307035,0.00039274,83382.0,83381.0,0.32868845]
[1743653310507,0.00039274,83382.0,83381.0,0.46328845]
[1743653313708,0.00039274,83382.0,83381.0,0.57076775]
[1743653315633,0.00039274,83382.0,83381.0,0.46328845]
[1743653316381,0.00039274,83382.0,83381.0,0.58004405]
[1743653316585,0.00039274,83382.0,83381.0,0.62704405]
[1743653317850,0.00039274,83382.0,83381.0,0.64138208]
[1743653318503,0.0003376,83401.0,83400.0,0.251798]
[1743653318691,0.00079875,83401.0,83400.0,0.251798]
[1743653319784,0.399389,83409.0,83404.0,0.011989]
[1743653319955,0.0120498,83408.0,83402.0,0.25179]
[1743653320295,0.2664447,83408.0,83402.0,0.01199]
[1743653320503,0.011989,83407.0,83402.0,0.01199]
[1743653320704,0.02583743,83406.0,83405.0,0.01948922]
[1743653320967,0.19079303,83406.0,83405.0,0.01948922]
[1743653321977,0.01384843,83406.0,83405.0,0.00749476]
[1743653322342,0.3400608,83408.0,83405.0,0.00749476]
[1743653322522,0.00075715,83407.0,83405.0,0.00749476]
[1743653323382,0.00075715,83407.0,83406.0,0.02323099]
[1743653323544,0.25253415,83407.0,83406.0,0.02323099]
[1743653325793,0.25253415,83407.0,83406.0,0.01124148]
[1743653328090,0.25253415,83407.0,83406.0,0.02323151]
[1743653329361,0.41748975,83407.0,83406.0,0.02323151]
[1743653330547,0.41748975,83407.0,83406.0,0.01124148]
[1743653331127,0.41748975,83407.0,83406.0,0.00749476]
[1743653331527,0.41748975,83407.0,83406.0,0.00249476]
[1743653332454,0.75748975,83407.0,83406.0,0.00266316]
[1743653335390,0.04895715,83407.0,83406.0,0.00266316]
[1743653335602,0.00075715,83407.0,83406.0,0.01465216]
[1743653335954,0.0003976,83408.0,83406.0,0.25444116]
[1743653336243,0.0146388,83407.0,83406.0,0.26643137]
[1743653337163,0.0003976,83408.0,83407.0,0.011989]
[1743653339347,0.0003976,83408.0,83407.0,0.02173264]
[1743653339530,0.01507885,83408.0,83407.0,0.02173264]
[1743653339697,0.0003976,83408.0,83407.0,0.02173264]
[1743653339900,0.02706785,83408.0,83407.0,0.02173264]
[1743653341006,0.01507885,83408.0,83407.0,0.02173264]
[1743653342040,0.48382345,83408.0,83407.0,0.02173264]
[1743653342257,0.52972345,83408.0,83407.0,0.02173264]
[1743653342492,0.57652345,83408.0,83407.0,0.02173264]
[1743653342825,0.57652345,83408.0,83407.0,0.01573686]
[1743653343445,0.57652345,83408.0,83407.0,0.00374665]
[1743653343647,0.351989,83407.0,83406.0,0.0001684]
[1743653343858,0.4687446,83407.0,83406.0,0.0001684]
[1743653345686,0.5179446,83407.0,83406.0,0.0001684]
[1743653348986,0.4567556,83407.0,83406.0,0.0001684]
[1743653349191,0.35507885,83408.0,83407.0,0.251777]
[1743653349388,0.01507885,83408.0,83407.0,0.251777]
[1743653350021,0.0003976,83408.0,83407.0,0.2630188]
[1743653350221,0.01504004,83408.0,83407.0,0.2630188]
[1743653350439,0.0003976,83408.0,83407.0,0.2630188]
[1743653350684,0.0003976,83408.0,83407.0,0.27500736]
[1743653351452,0.0003976,83408.0,83407.0,0.28100314]
[1743653352510,0.0003976,83408.0,83407.0,0.04121514]
[1743653352849,0.01504004,83408.0,83407.0,0.04121514]
[1743653352994,0.0003976,83408.0,83407.0,0.04121514]
[1743653353194,0.0003976,83408.0,83407.0,0.03521936]
[1743653358443,0.1291422,83408.0,83407.0,0.02323036]
[1743653358644,0.0003976,83408.0,83407.0,0.03521936]
[1743653358772,0.01518101,83408.0,83407.0,0.0232308]
[1743653358973,0.0003976,83408.0,83407.0,0.01948363]
[1743653361897,0.0003976,83408.0,83407.0,0.04121236]
[1743653363548,6e-07,83408.0,83407.0,0.20666796]
[1743653363723,6e-07,83408.0,83407.0,0.7055132]
[1743653364548,6e-07,83408.0,83407.0,0.8129258]
[1743653365054,0.004,83429.0,83428.0,0.011986]
[1743653365822,0.004,83429.0,83428.0,0.251713]
[1743653366600,0.004,83429.0,83428.0,0.27494241]
[1743653367230,0.004,83429.0,83428.0,0.28383348]
[1743653367608,0.004,83429.0,83428.0,0.27494241]
[1743653368307,0.004,83429.0,83428.0,0.40071765]
[1743653371334,0.004,83429.0,83428.0,0.81531765]
[1743653371711,0.004,83429.0,83428.0,0.84031765]
[1743653374131,0.004,83429.0,83428.0,0.84531765]
[1743653374535,0.0003374,83448.0,83433.0,0.251698]
[1743653374713,0.00047565,83434.0,83433.0,0.3684536]
[1743653376008,0.00047565,83434.0,83433.0,0.37594823]
[1743653376657,0.00047565,83434.0,83433.0,0.37969445]
[1743653378359,0.00047565,83434.0,83433.0,0.26293885]
[1743653379690,0.00047565,83434.0,83433.0,0.25919263]
[1743653380862,0.00047565,83434.0,83433.0,0.26293885]
[1743653382700,0.00047565,83434.0,83433.0,0.01124085]
[1743653383097,0.00047565,83434.0,83433.0,0.02322585]
[1743653383295,0.00047565,83434.0,83433.0,0.01124085]
[1743653383559,0.01570838,83434.0,83433.0,0.01124085]
[1743653383761,0.00047565,83434.0,83433.0,0.01124085]
[1743653383897,0.01570838,83434.0,83433.0,0.01124085]
[1743653384097,0.00047565,83434.0,83433.0,0.00749463]
[1743653384297,0.01570838,83434.0,83433.0,0.00749463]
[1743653384498,0.00047565,83434.0,83433.0,0.00749463]
[1743653384728,0.01570838,83434.0,83433.0,0.00749463]
[1743653384926,0.17741625,83434.0,83433.0,0.00749463]
[1743653385127,0.19264898,83434.0,83433.0,0.00749463]
[1743653386964,0.251698,83433.0,83428.0,0.00749463]
[1743653387171,0.1176925,83432.0,83428.0,0.00749463]
[1743653388705,0.1176925,83432.0,83429.0,0.00749463]
[1743653389242,0.1176925,83432.0,83430.0,0.011986]
[1743653389447,0.1176925,83432.0,83431.0,0.251704]
[1743653389448,0.0009369,83432.0,83431.0,0.251704]
[1743653389867,0.00047565,83434.0,83433.0,0.011985]
[1743653391022,0.00047565,83434.0,83433.0,0.01947963]
[1743653391427,0.00047565,83434.0,83433.0,0.02322585]
[1743653392874,0.00047565,83434.0,83433.0,0.0292198]
[1743653393062,0.00047565,83434.0,83433.0,0.04120836]
[1743653393269,0.00047565,83434.0,83433.0,0.15796396]
[1743653394287,0.0003374,83448.0,83447.0,0.011983]
[1743653394674,0.01543838,83448.0,83447.0,0.011983]
[1743653395155,0.01543838,83448.0,83447.0,0.251656]
[1743653395369,0.0003374,83448.0,83447.0,0.251656]
[1743653395806,0.0003374,83448.0,83447.0,0.27113919]
[1743653396364,0.0003374,83448.0,83447.0,0.27488541]
[1743653397559,0.0003374,83448.0,83447.0,0.28087936]
[1743653398302,0.00121968,83448.0,83447.0,0.02922336]
[1743653398819,0.00121968,83448.0,83447.0,0.02322941]
[1743653400566,0.00121968,83448.0,83447.0,0.03521241]
[1743653400743,0.0003374,83448.0,83447.0,0.03521241]
[1743653404581,0.0145561,83448.0,83447.0,0.02322941]
[1743653404773,0.01543838,83448.0,83447.0,0.02322941]
[1743653404981,0.26709138,83448.0,83447.0,0.02322941]
[1743653405189,0.47554698,83448.0,83447.0,0.02322941]
[1743653406567,0.47554698,83448.0,83447.0,0.01124085]
[1743653406768,0.47554698,83448.0,83447.0,0.00749463]
[1743653416741,0.47554698,83448.0,83447.0,0.0112397]
[1743653417829,0.01543838,83448.0,83447.0,0.2628957]
[1743653418030,0.0003374,83448.0,83447.0,0.2628957]
[1743653418413,0.0003374,83448.0,83447.0,0.28087385]
[1743653420142,0.0003374,83448.0,83447.0,0.29585223]
[1743653423002,0.0003374,83448.0,83447.0,0.28087385]
[1743653426112,0.0003374,83448.0,83447.0,0.04120085]
[1743653426326,0.0003374,83448.0,83447.0,0.02921785]
[1743653426726,0.01550928,83448.0,83447.0,0.02921785]
[1743653427303,0.01550928,83448.0,83447.0,0.04120085]
[1743653427843,0.0003374,83448.0,83447.0,0.04120085]
[1743653434196,0.0003374,83448.0,83447.0,0.02921785]
[1743653434406,0.02183905,83448.0,83447.0,0.02921785]
[1743653434627,0.18679465,83448.0,83447.0,0.04419579]
[1743653435630,0.18679465,83448.0,83447.0,0.05182129]
[1743653436523,0.18679465,83448.0,83447.0,0.15892335]
[1743653436727,0.18679465,83448.0,83447.0,0.15129785]
[1743653437242,0.18679465,83448.0,83447.0,0.15878727]
[1743653438606,0.18679465,83448.0,83447.0,0.05168521]
[1743653441918,0.02183905,83448.0,83447.0,0.06366821]
[1743653442324,0.0003374,83448.0,83447.0,0.06366821]
[1743653445046,0.000337,83456.0,83454.0,0.011982]
[1743653445221,0.02179903,83455.0,83454.0,0.011982]
[1743653445993,0.02179903,83455.0,83454.0,0.04643877]
[1743653446152,0.02179903,83455.0,83454.0,0.30331921]
[1743653446348,0.02086501,83455.0,83454.0,0.30331921]
[1743653446552,0.000337,83455.0,83454.0,0.30331921]
[1743653447133,0.00127102,83455.0,83454.0,0.30331921]
[1743653447334,0.02179903,83455.0,83454.0,0.30331921]
[1743653451030,0.02179903,83455.0,83454.0,0.05168521]
[1743653452113,0.02179903,83455.0,83454.0,0.06366721]
[1743653454742,0.02179903,83455.0,83454.0,0.05168521]
[1743653456077,0.02179903,83455.0,83454.0,0.06366721]
[1743653459050,0.000337,83455.0,83454.0,0.11086721]
[1743653460365,0.000337,83455.0,83454.0,0.06366721]
[1743653461360,0.0003372,83465.0,83464.0,0.251605]
[1743653461562,0.00047543,83465.0,83464.0,0.251605]
[1743653462674,0.00047543,83465.0,83464.0,0.28606177]
[1743653463397,0.00047543,83465.0,83464.0,0.30329021]
[1743653470669,0.00047543,83465.0,83464.0,0.31090703]
[1743653471098,0.00047543,83465.0,83464.0,0.30341761]
[1743653472093,0.00047543,83465.0,83464.0,0.29580079]
[1743653473719,0.00047543,83465.0,83464.0,0.04419579]
[1743653474126,0.02064419,83465.0,83464.0,0.04419579]
[1743653474329,0.02064419,83465.0,83464.0,0.05168334]
[1743653475586,0.14938079,83465.0,83464.0,0.05168334]
[1743653475889,0.14938079,83465.0,83464.0,0.04419579]
[1743653476848,0.14938079,83465.0,83464.0,0.02921785]
[1743653477067,0.14423908,83465.0,83464.0,0.02921785]
[1743653479031,0.13225808,83465.0,83464.0,0.02921785]
[1743653483560,0.01685829,83465.0,83464.0,0.02921785]
[1743653483759,0.01685829,83465.0,83464.0,0.04119885]
[1743653484138,0.0001686,83466.0,83465.0,0.251602]
[1743653485220,0.0001686,83466.0,83465.0,0.28605877]
[1743653485659,0.0001686,83466.0,83465.0,0.29579779]
[1743653485869,0.05969332,83480.0,83478.0,0.251561]
[1743653486022,0.01683725,83479.0,83478.0,0.251561]
[1743653486647,0.01683725,83479.0,83478.0,0.011979]
[1743653487790,0.01683725,83479.0,83478.0,0.04119685]
[1743653489146,0.01683725,83479.0,83478.0,0.05344328]
[1743653489299,0.0003376,83485.0,83484.0,0.011978]
[1743653490198,0.0003376,83485.0,83484.0,0.28599339]
[1743653491037,0.0003376,83485.0,83484.0,0.29573241]
[1743653495258,0.0003376,83485.0,83484.0,0.30333905]
[1743653499275,0.0003376,83485.0,83484.0,0.29573241]
[1743653502885,0.0003376,83485.0,83484.0,0.28076185]
[1743653511573,0.0003376,83485.0,83484.0,0.29573241]
[1743653514093,0.0003376,83485.0,83484.0,0.30333905]
[1743653515264,0.0003376,83485.0,83484.0,0.29573241]
[1743653516558,6e-07,83485.0,83484.0,0.45788801]
[1743653516757,2e-07,83486.0,83485.0,0.011978]
[1743653516986,2e-07,83486.0,83485.0,0.1287336]
[1743653517794,0.0461,83510.0,83508.0,0.251471]
[1743653518133,0.01704999,83509.0,83508.0,0.251471]
[1743653518704,0.01704999,83509.0,83508.0,0.26121002]
[1743653519231,0.01704999,83509.0,83508.0,0.29565941]
[1743653520191,0.00046094,83510.0,83509.0,0.011974]
[1743653521408,0.00046094,83510.0,83509.0,0.02171302]
[1743653522319,0.00046094,83510.0,83509.0,0.04119185]
[1743653524797,0.00046094,83510.0,83509.0,0.08889185]
[1743653525002,0.00046094,83510.0,83509.0,0.20564745]
[1743653525240,0.00046094,83510.0,83509.0,0.21327266]
[1743653525452,0.00046094,83510.0,83509.0,0.21641352]
[1743653525968,2.4e-07,83519.0,83515.0,0.011973]
[1743653526128,2.4e-07,83519.0,83518.0,0.114173]
[1743653526478,3e-07,83519.0,83518.0,0.40331294]
[1743653527452,3e-07,83519.0,83518.0,0.43775651]
[1743653528443,3e-07,83519.0,83518.0,0.44749553]
[1743653528686,0.0003368,83532.0,83531.0,0.251403]
[1743653530443,0.0003368,83532.0,83531.0,0.27846345]
[1743653530963,0.0003368,83532.0,83531.0,0.28820247]
[1743653531783,0.0003368,83532.0,83531.0,0.28062085]
[1743653531951,0.0003368,83532.0,83531.0,0.26864985]
[1743653532138,0.0003368,83532.0,83531.0,0.04118885]
[1743653532760,0.0003368,83532.0,83531.0,0.02920465]
[1743653533637,0.0003368,83532.0,83531.0,0.0232107]
[1743653534020,0.26908615,83532.0,83531.0,0.0112397]
[1743653534436,0.01768615,83532.0,83531.0,0.0112397]
[1743653538365,0.02965715,83532.0,83531.0,0.0112397]
[1743653538530,0.19690557,83532.0,83531.0,0.0112397]
[1743653538740,0.19391275,83532.0,83531.0,0.0112397]
[1743653540305,0.19391275,83532.0,83529.0,0.0112397]
[1743653540505,0.1167556,83531.0,83529.0,0.0112397]
[1743653540708,0.00096922,83530.0,83529.0,0.0112397]
[1743653542527,0.00096922,83530.0,83529.0,0.0232107]
[1743653542734,0.0003368,83532.0,83531.0,0.011971]
[1743653543869,0.0003368,83532.0,83531.0,0.01946563]
[1743653544044,0.0003368,83532.0,83531.0,0.0232107]
[1743653546418,0.0003368,83532.0,83531.0,0.0351949]
[1743653546797,0.0003368,83532.0,83531.0,0.04118885]
[1743653551915,0.0478368,83532.0,83531.0,0.02921785]
[1743653552044,0.2992368,83532.0,83531.0,0.02921785]
[1743653552251,0.31683722,83532.0,83531.0,0.02921785]
[1743653553076,0.06543722,83532.0,83531.0,0.02921785]
[1743653553454,0.19416382,83532.0,83531.0,0.02921785]
[1743653554027,0.19715683,83532.0,83531.0,0.02921785]
[1743653554235,0.19715683,83532.0,83531.0,0.04418228]
[1743653554391,0.19416382,83532.0,83531.0,0.04418228]
[1743653555777,0.19416382,83532.0,83531.0,0.02921785]
[1743653556149,0.18219282,83532.0,83531.0,0.02921785]
[1743653557792,0.19416382,83532.0,83531.0,0.02921785]
[1743653558239,0.19416382,83532.0,83531.0,0.04418227]
[1743653558445,0.18219282,83532.0,83531.0,0.04418227]
[1743653558816,0.18219282,83532.0,83531.0,0.28361427]
[1743653559045,0.18219282,83532.0,83531.0,0.04418227]
[1743653562536,0.01793722,83532.0,83531.0,0.05615327]
[1743653562758,0.01793722,83532.0,83531.0,0.04118885]
[1743653562965,0.0003368,83532.0,83531.0,0.04118885]
[1743653563684,0.0003368,83532.0,83531.0,0.13218885]
[1743653563885,0.0003368,83532.0,83531.0,0.16950951]
[1743653564115,0.01291111,83533.0,83532.0,0.2514]
[1743653564315,0.01291111,83533.0,83532.0,0.28872066]
[1743653564751,0.004,83549.0,83548.0,0.251352]
[1743653564962,0.00413811,83549.0,83548.0,0.251352]
[1743653565205,0.00413811,83549.0,83545.0,0.011969]
[1743653565424,0.00413811,83549.0,83545.0,0.251359]
[1743653565608,0.11974799,83548.0,83543.0,0.011969]
[1743653565821,0.11974799,83548.0,83543.0,0.251364]
[1743653566249,0.11974799,83548.0,83544.0,0.03144783]
[1743653566426,0.00093346,83547.0,83544.0,0.03144783]
[1743653566634,0.11768906,83547.0,83544.0,0.03144783]
[1743653566848,0.12068154,83547.0,83545.0,0.00973902]
[1743653567145,0.3681136,83546.0,83545.0,0.02921785]
[1743653567314,0.4669136,83546.0,83545.0,0.02921785]
[1743653567495,0.46784419,83546.0,83545.0,0.02921785]
[1743653568106,0.80784419,83546.0,83545.0,0.02921785]
[1743653568511,0.80784419,83546.0,83545.0,0.0112397]
[1743653569749,0.80784419,83546.0,83545.0,0.00374507]
[1743653570358,0.35197,83538.0,83537.0,0.00599395]
[1743653570626,0.51477913,83538.0,83537.0,0.00599395]
[1743653571158,0.51477913,83538.0,83537.0,0.01347618]
[1743653571803,0.51477913,83538.0,83537.0,0.01122337]
[1743653573072,0.51477913,83538.0,83537.0,0.00748223]
[1743653575258,0.011971,83531.0,83530.0,0.01197168]
[1743653575463,0.1287266,83531.0,83530.0,0.01197168]
[1743653575636,0.1297002,83531.0,83530.0,0.01197168]
[1743653575833,0.14625428,83531.0,83530.0,0.02170678]
[1743653576419,0.14625428,83531.0,83530.0,0.02918908]
[1743653577049,0.14625428,83531.0,83530.0,0.02319513]
[1743653577888,0.19434742,83531.0,83530.0,0.02319513]
[1743653578055,0.24174742,83531.0,83530.0,0.02319513]
[1743653578260,0.23875428,83531.0,83530.0,0.01945398]
[1743653578792,0.011972,83527.0,83526.0,0.00895844]
[1743653578999,0.14528793,83527.0,83526.0,0.00895844]
[1743653579337,0.14620131,83527.0,83522.0,0.1069522]
[1743653579523,0.1167556,83526.0,83523.0,0.00598636]
[1743653579738,0.1167556,83526.0,83523.0,0.0179591]
[1743653579893,0.00091912,83525.0,83523.0,0.0179591]
[1743653580098,0.1167556,83524.0,83523.0,0.0179591]
[1743653580506,0.11767759,83524.0,83523.0,0.0179591]
[1743653580948,0.11767759,83524.0,83523.0,0.01571423]
[1743653581124,0.1167556,83524.0,83523.0,0.02319646]
[1743653582105,0.1167556,83524.0,83523.0,0.01122446]
[1743653582456,0.1287276,83524.0,83523.0,0.01122446]
[1743653582812,0.12962377,83524.0,83523.0,0.01122446]
[1743653583562,0.12962377,83524.0,83523.0,0.00748297]
[1743653587452,0.12962377,83524.0,83523.0,0.01122456]
[1743653589795,0.51532377,83524.0,83523.0,0.01122456]
[1743653590696,0.011973,83520.0,83519.0,0.0003368]
[1743653590894,0.47172232,83520.0,83519.0,0.0003368]
[1743653591215,0.48611258,83520.0,83519.0,0.0003368]
[1743653592189,0.72557558,83520.0,83519.0,0.0003368]
[1743653597016,0.77187558,83520.0,83519.0,0.0003368]
[1743653597222,0.81797558,83520.0,83519.0,0.0003368]
[1743653609781,0.93471959,83520.0,83519.0,0.0003368]
[1743653609926,1.38101921,83520.0,83519.0,8e-07]
[1743653610123,1.34931959,83520.0,83519.0,8e-07]
[1743653611530,2.42699959,83520.0,83519.0,8e-07]
[1743653614202,2.49011239,83520.0,83519.0,8e-07]
[1743653614438,2.45841277,83520.0,83519.0,8e-07]
[1743653614658,2.42699959,83520.0,83519.0,8e-07]
[1743653614782,0.251518,83493.0,83488.0,0.0119746]
[1743653614978,0.38547127,83493.0,83492.0,0.00079774]
[1743653615588,0.38547127,83493.0,83492.0,0.00828369]
[1743653617859,0.72547127,83493.0,83492.0,0.00828369]
[1743653618238,0.78496315,83493.0,83492.0,0.00828369]
[1743653618705,0.78496315,83493.0,83492.0,0.00079774]
[1743653619710,0.78370582,83493.0,83492.0,0.00079774]
[1743653620169,0.91870582,83493.0,83492.0,0.00079774]
[1743653620338,0.87100582,83493.0,83492.0,0.00079774]
[1743653622004,0.01719767,83493.0,83492.0,0.04669774]
[1743653622846,0.01719767,83493.0,83492.0,0.0541847]
[1743653623344,0.01719767,83493.0,83492.0,0.05792837]
[1743653623548,0.26871567,83493.0,83492.0,0.05792837]
[1743653624404,0.01719767,83493.0,83492.0,0.05792837]
[1743653624608,0.02917467,83493.0,83492.0,0.05792837]
[1743653625054,0.14593027,83493.0,83492.0,0.01202837]
[1743653625727,0.14593027,83493.0,83492.0,0.0082847]
[1743653631997,0.48593027,83493.0,83492.0,0.0082847]
[1743653633084,0.48593027,83493.0,83492.0,0.00079774]
[1743653635111,0.62077027,83493.0,83492.0,0.00079774]
[1743653637223,0.62077027,83493.0,83492.0,0.00828393]
[1743653639248,0.62093887,83493.0,83492.0,0.00828393]
[1743653639445,0.62093887,83493.0,83492.0,0.02026093]
[1743653639446,0.01736627,83493.0,83492.0,0.02026093]
[1743653639656,0.0001686,83493.0,83492.0,0.25980393]
[1743653639863,0.01722144,83493.0,83492.0,0.25980393]
[1743653640258,0.01722144,83493.0,83492.0,0.26953334]
[1743653640459,0.0001686,83493.0,83492.0,0.26953334]
[1743653640669,0.0001686,83493.0,83492.0,0.28151124]
[1743653641047,0.01723945,83493.0,83492.0,0.29046832]
[1743653642684,0.0001686,83493.0,83492.0,0.29046832]
[1743653643962,0.00097151,83493.0,83492.0,0.29046832]
[1743653644761,0.00097151,83493.0,83492.0,0.03894832]
[1743653645177,0.25248951,83493.0,83492.0,0.03894832]
[1743653647921,0.25248951,83493.0,83492.0,0.03296169]
[1743653649317,0.25248951,83493.0,83492.0,0.03894832]
[1743653650673,0.26879486,83493.0,83492.0,0.03894832]
[1743653655745,0.38555046,83493.0,83492.0,0.03894832]
[1743653659276,0.38555046,83493.0,83492.0,0.03296169]
[1743653660655,0.38555046,83493.0,83492.0,0.02400461]
[1743653665284,0.38555046,83493.0,83492.0,0.02999124]
[1743653665993,0.38555046,83493.0,83492.0,0.03896414]
[1743653668824,0.48285046,83493.0,83492.0,0.03896414]
[1743653669248,0.82285046,83493.0,83492.0,0.01202671]
[1743653669857,0.82285046,83493.0,83492.0,7.1e-07]
[1743653670594,0.591535,83487.0,83486.0,0.1069522]
[1743653670794,0.77313942,83487.0,83486.0,0.1069522]
[1743653671042,0.77393085,83487.0,83486.0,0.1069522]
[1743653672796,0.251581,83472.0,83471.0,0.11592931]
[1743653672993,0.251581,83472.0,83471.0,0.1069522]